bitfinex-derivatives/quotes_ETHF0:USTF0_20240901
["timestamp","ask_amount","ask_price","bid_price","bid_amount"]
[1725173325254,0.00605596,2474.7,2474.4,0.83365637]
[1725173325858,0.00605596,2474.7,2474.4,0.59117637]
[1725173327055,0.00605596,2474.7,2474.4,0.39]
[1725173329149,6.89808646,2475.2,2474.9,0.24244]
[1725173329150,3.2078,2475.2,2474.9,0.24244]
[1725173329355,3.2078,2475.2,2474.6,2.79]
[1725173329356,0.7394,2475.8,2475.0,6.3541]
[1725173329659,0.7394,2475.8,2475.3,5.9978]
[1725173329858,3.45012,2476.2,2475.5,0.24238]
[1725173330363,4.74657654,2476.1,2475.6,0.35985596]
[1725173330557,4.50425654,2476.1,2475.6,0.35985596]
[1725173330757,4.50425654,2476.1,2475.6,3.81002596]
[1725173330957,4.50425654,2476.1,2475.6,3.56765596]
[1725173331160,4.74657654,2476.1,2475.6,3.56765596]
[1725173332367,4.74657654,2476.1,2475.6,3.94305596]
[1725173337360,4.74657654,2476.1,2475.6,4.14930608]
[1725173338269,4.74657654,2476.1,2475.6,0.00605596]
[1725173338270,0.24235,2475.9,2475.6,0.00605596]
[1725173338564,0.3534,2475.8,2475.6,0.00605596]
[1725173338766,0.7138,2475.8,2475.6,0.00605596]
[1725173339666,0.00605596,2476.1,2475.6,0.00605596]
[1725173340669,0.24838596,2476.1,2475.6,0.00605596]
[1725173343372,0.00605596,2476.1,2475.6,0.24842596]
[1725173343764,0.00605596,2476.1,2475.7,0.3589]
[1725173343963,0.00605596,2476.1,2475.8,0.3899]
[1725173344175,0.24837596,2476.1,2475.8,0.3899]
[1725173344365,0.24233,2476.0,2475.8,0.3899]
[1725173344770,0.24838596,2476.1,2475.8,0.3899]
[1725173346372,0.3898,2476.0,2475.8,0.3899]
[1725173350468,0.63214,2476.0,2475.6,0.00605596]
[1725173350674,0.3898,2476.0,2475.6,0.00605596]
[1725173350879,0.24234,2475.9,2475.6,0.00605596]
[1725173351070,0.63214,2476.0,2475.6,0.00605596]
[1725173351268,0.3631,2475.8,2475.6,0.00605596]
[1725173351874,0.381,2475.7,2475.6,0.00605596]
[1725173352270,0.381,2475.7,2475.6,4.04525596]
[1725173352674,8.96556359,2475.7,2475.6,0.00605596]
[1725173353075,8.72320359,2475.7,2475.6,0.00605596]
[1725173353283,0.3631,2475.8,2475.6,0.00605596]
[1725173356383,0.3631,2475.8,2475.6,0.38175596]
[1725173358568,0.24236,2475.7,2475.6,0.00605596]
[1725173359077,4.28156,2475.7,2475.6,0.00605596]
[1725173360274,0.24236,2475.7,2475.6,0.00605596]
[1725173361776,0.60546,2475.8,2475.6,0.00605596]
[1725173362684,0.3631,2475.8,2475.6,0.00605596]
[1725173363584,0.60545,2475.8,2475.6,0.00605596]
[1725173363987,0.24236,2475.7,2475.6,0.00605596]
[1725173365489,8.59051905,2475.7,2475.6,0.00605596]
[1725173367081,8.34815905,2475.7,2475.6,0.00605596]
[1725173367484,8.59051905,2475.7,2475.6,0.00605596]
[1725173367883,8.34815905,2475.7,2475.6,0.00605596]
[1725173368190,8.59051905,2475.7,2475.6,0.00605596]
[1725173368996,4.55131905,2475.7,2475.6,0.00605596]
[1725173369288,8.59051905,2475.7,2475.6,0.00605596]
[1725173371194,4.55131905,2475.7,2475.6,0.00605596]
[1725173373889,8.59051905,2475.7,2475.6,0.00605596]
[1725173375403,8.59051905,2475.7,2475.6,0.39592985]
[1725173376496,4.55131905,2475.7,2475.6,0.39592985]
[1725173377804,8.59051905,2475.7,2475.6,0.39592985]
[1725173378601,4.55131905,2475.7,2475.6,0.39592985]
[1725173378804,4.55131905,2475.7,2475.6,0.39590504]
[1725173380307,4.30895905,2475.7,2475.6,0.39590504]
[1725173380497,0.3631,2475.8,2475.6,0.39590504]
[1725173380694,0.3631,2475.8,2475.7,0.38984908]
[1725173380897,0.3631,2475.8,2475.7,0.77604908]
[1725173382014,0.3631,2475.8,2475.7,0.3862]
[1725173382207,0.3631,2475.8,2475.7,0.77583699]
[1725173383213,0.60545,2475.8,2475.7,0.77583699]
[1725173384313,0.60545,2475.8,2475.7,0.3862]
[1725173384611,0.60545,2475.8,2475.7,0.77585027]
[1725173385211,0.60545,2475.8,2475.7,0.77584985]
[1725173385514,0.60545,2475.8,2475.7,0.3862]
[1725173386112,0.60545,2475.8,2475.7,0.77585144]
[1725173386415,0.60545,2475.8,2475.7,0.3862]
[1725173386915,0.60545,2475.8,2475.7,0.77585048]
[1725173387113,0.60545,2475.8,2475.7,0.3862]
[1725173387306,0.60545,2475.8,2475.7,0.77587913]
[1725173388716,0.60545,2475.8,2475.7,0.77588087]
[1725173389019,0.60545,2475.8,2475.7,0.3862]
[1725173389321,0.60545,2475.8,2475.7,0.77588062]
[1725173389917,0.60545,2475.8,2475.7,0.38968062]
[1725173390321,0.24236,2475.7,2475.6,0.00605596]
[1725173390517,0.24236,2475.7,2475.6,0.39577034]
[1725173396922,4.28156,2475.7,2475.6,0.39577034]
[1725173398621,4.28156,2475.7,2475.6,0.00605596]
[1725173398828,4.28156,2475.7,2475.6,0.3960073]
[1725173399322,0.24236,2475.7,2475.6,0.3960073]
[1725173400219,4.28156,2475.7,2475.6,0.3960073]
[1725173400415,0.24236,2475.7,2475.6,0.3960073]
[1725173400619,0.3631,2475.8,2475.6,0.3960073]
[1725173400823,0.60545,2475.8,2475.7,0.77245134]
[1725173401328,4.87123437,2475.8,2475.7,0.77245134]
[1725173401831,8.91043437,2475.8,2475.7,0.77245134]
[1725173402028,4.87123437,2475.8,2475.7,0.77245134]
[1725173403421,8.66808437,2475.8,2475.7,0.77245134]
[1725173403727,4.62888437,2475.8,2475.7,0.77245134]
[1725173404225,4.26578437,2475.8,2475.7,5.19615134]
[1725173404433,0.00605596,2476.1,2475.7,11.81491729]
[1725173404728,0.00605596,2476.1,2476.0,3.2078]
[1725173404917,0.00605596,2476.1,2476.0,5.79913306]
[1725173405125,0.00605596,2476.1,2476.0,10.4734167]
[1725173406126,0.00605596,2476.1,2476.0,9.67253649]
[1725173407531,0.00605596,2476.1,2476.0,6.46473649]
[1725173407720,0.00605596,2476.1,2476.0,5.41061729]
[1725173408118,0.00605596,2476.1,2476.0,4.79185134]
[1725173408325,0.00605596,2476.1,2476.0,5.41021316]
[1725173409224,0.00605596,2476.1,2476.0,4.79185134]
[1725173410933,0.00605596,2476.1,2476.0,4.79153645]
[1725173411125,0.00605596,2476.1,2476.0,4.4019]
[1725173412732,0.00605596,2476.1,2475.7,1.8211192]
[1725173412927,0.00605596,2476.1,2475.7,0.767]
[1725173413128,0.24838596,2476.1,2475.8,1.16]
[1725173413533,0.61858596,2476.1,2475.8,1.16]
[1725173415730,0.24234,2476.0,2475.8,1.16]
[1725173415922,0.60534,2476.0,2475.8,1.16]
[1725173416537,0.363,2476.0,2475.8,1.16]
[1725173417139,0.363,2476.0,2475.7,0.767]
[1725173417536,0.24235,2475.9,2475.7,0.767]
[1725173417737,0.60534,2476.0,2475.7,0.767]
[1725173419533,0.24235,2475.9,2475.7,0.767]
[1725173419730,0.24236,2475.8,2475.6,0.00605596]
[1725173419933,0.61716,2475.8,2475.6,0.76045596]
[1725173422829,0.3748,2475.8,2475.6,0.76045596]
[1725173424449,0.37625596,2476.1,2475.6,1.92045596]
[1725173424632,0.37625596,2476.1,2475.7,0.3899012]
[1725173424944,0.37625596,2476.1,2475.8,0.388]
[1725173427441,0.00605596,2476.1,2475.8,1.79035]
[1725173429341,0.24236,2475.7,2475.6,0.00605596]
[1725173429543,0.24241,2475.2,2475.1,1.67310441]
[1725173429740,0.24241,2475.2,2475.1,0.39011865]
[1725173430049,0.2424,2475.3,2474.9,2.47405294]
[1725173430246,0.2424,2475.3,2475.0,0.39021773]
[1725173430547,0.356,2475.2,2474.9,3.01479241]
[1725173430746,0.356,2475.2,2475.0,0.39020591]
[1725173430935,0.356,2475.2,2474.9,3.64009865]
[1725173431135,0.356,2475.2,2475.0,0.39022687]
[1725173431331,0.356,2475.2,2474.9,1.96672917]
[1725173431534,0.59841,2475.2,2475.0,0.39023473]
[1725173431739,0.59841,2475.2,2474.9,1.16605596]
[1725173432036,0.24242,2475.1,2475.0,0.39024651]
[1725173432237,0.24242,2475.1,2474.9,0.00605596]
[1725173432238,5.17884756,2475.1,2474.9,0.00605596]
[1725173432543,0.3674,2475.0,2474.9,0.00605596]
[1725173433541,0.24233,2476.0,2475.4,0.24239]
[1725173433745,0.24232,2476.2,2475.9,1.16]
[1725173434140,0.24838596,2476.1,2475.9,1.16]
[1725173434343,0.00605596,2476.1,2475.9,1.16]
[1725173435339,0.24838596,2476.1,2475.9,1.16]
[1725173436041,0.00605596,2476.1,2475.9,1.16]
[1725173436240,0.00605596,2476.1,2475.8,3.2078]
[1725173437447,0.00605596,2476.1,2475.8,7.247]
[1725173437641,0.00605596,2476.1,2475.8,3.2078]
[1725173437843,0.00605596,2476.1,2475.9,0.24234]
[1725173438146,0.00605596,2476.1,2476.0,0.3895]
[1725173438546,0.24837596,2476.1,2476.0,0.3895]
[1725173440646,0.00605596,2476.1,2476.0,0.3895]
[1725173441947,0.24837596,2476.1,2476.0,0.3895]
[1725173443145,0.24234,2475.9,2475.8,3.2078]
[1725173447646,0.24235,2475.8,2475.7,0.3692]
[1725173448553,0.3636,2476.0,2475.7,0.3692]
[1725173448554,0.24235,2475.9,2475.7,0.3692]
[1725173453346,0.60594,2476.0,2475.7,0.3692]
[1725173453551,0.24234,2476.0,2475.7,0.3692]
[1725173455053,0.24235,2475.9,2475.7,0.3692]
[1725173457647,4.26210426,2475.8,2475.4,4.26042708]
[1725173457853,0.24238,2475.5,2475.4,3.2078]
[1725173461562,0.24238,2475.5,2475.1,6.43087931]
[1725173461857,0.24238,2475.5,2475.2,0.38989738]
[1725173462058,0.24238,2475.5,2475.1,6.43087931]
[1725173462266,0.24238,2475.5,2475.2,0.38986889]
[1725173462460,0.24238,2475.5,2475.1,6.43087931]
[1725173462660,0.24238,2475.5,2475.2,0.38986956]
[1725173462859,0.24238,2475.5,2475.1,6.43087931]
[1725173463159,0.24238,2475.5,2475.2,0.38987149]
[1725173463361,0.24238,2475.5,2475.1,6.43087931]
[1725173463562,0.24238,2475.5,2475.2,0.38985787]
[1725173463764,0.24238,2475.5,2475.1,6.43087931]
[1725173463963,0.24238,2475.5,2475.2,0.3898369]
[1725173464163,0.24238,2475.5,2475.1,6.43087931]
[1725173464363,0.24238,2475.5,2475.2,0.38975691]
[1725173464564,0.24238,2475.5,2475.1,6.43087931]
[1725173464768,0.24238,2475.5,2475.2,0.38974807]
[1725173464968,0.24238,2475.5,2475.1,6.67329931]
[1725173465267,0.24238,2475.5,2475.2,0.38973501]
[1725173465464,0.24238,2475.5,2475.1,6.67329931]
[1725173465465,0.24238,2475.5,2475.1,6.05454708]
[1725173465660,0.24238,2475.5,2475.2,0.38969278]
[1725173465859,0.24238,2475.5,2475.1,6.67296017]
[1725173466060,0.24238,2475.5,2475.2,0.38967631]
[1725173466261,0.24238,2475.5,2475.1,6.67296017]
[1725173466469,0.24238,2475.5,2475.2,0.38967637]
[1725173466669,0.24238,2475.5,2475.1,6.05454708]
[1725173466969,0.24238,2475.6,2475.2,0.38967713]
[1725173467158,0.24238,2475.6,2475.1,6.05454708]
[1725173467354,0.24238,2475.6,2475.2,0.38968551]
[1725173467563,0.24238,2475.5,2475.1,6.05454708]
[1725173467859,0.24238,2475.5,2475.2,0.38973236]
[1725173468169,0.24238,2475.5,2475.1,6.67296017]
[1725173468170,0.24238,2475.6,2475.1,6.67296017]
[1725173468360,0.24238,2475.6,2475.2,0.38974456]
[1725173468561,0.24238,2475.6,2475.1,6.67305864]
[1725173468871,0.24238,2475.6,2475.2,3.59754085]
[1725173469059,0.24238,2475.6,2475.2,3.2078]
[1725173469771,0.24238,2475.6,2475.2,3.45021]
[1725173471364,0.24238,2475.6,2475.2,3.2078]
[1725173471971,0.24238,2475.5,2475.2,3.2078]
[1725173472172,0.60218,2475.5,2475.2,3.2078]
[1725173474572,0.60218,2475.5,2475.1,2.84674708]
[1725173474873,0.60218,2475.5,2475.3,3.2078]
[1725173475477,0.3598,2475.5,2475.3,3.2078]
[1725173475664,0.24238,2475.6,2475.3,3.2078]
[1725173475966,0.24238,2475.6,2475.3,4.3678]
[1725173478473,0.24238,2475.6,2475.4,0.7458]
[1725173478674,0.24238,2475.6,2475.5,0.3786]
[1725173478874,0.3903,2475.7,2475.3,3.2078]
[1725173479283,0.24239,2475.5,2475.3,3.2078]
[1725173479666,0.3608,2475.4,2475.3,3.2078]
[1725173480174,1.76319,2475.4,2475.3,3.2078]
[1725173480376,13.7683922,2475.4,2474.9,0.00605596]
[1725173480575,1.16,2475.2,2474.9,0.00605596]
[1725173480763,0.24243,2475.0,2474.9,0.00605596]
[1725173482280,1.16,2475.0,2474.9,0.00605596]
[1725173482575,5.98888694,2475.0,2474.9,0.00605596]
[1725173485271,6.59497694,2475.0,2474.9,0.00605596]
[1725173489772,5.98888694,2475.0,2474.9,0.00605596]
[1725173492784,6.59497694,2475.0,2474.9,5.96e-06]
[1725173492988,16.63577694,2475.0,2474.9,5.96e-06]
[1725173494784,16.63577694,2475.0,2474.0,0.3851]
[1725173494785,16.39334694,2475.0,2474.0,0.3851]
[1725173494976,1.40249,2474.4,2474.3,4.0408]
[1725173495383,6.10727343,2474.4,2474.3,4.0408]
[1725173496488,6.46827343,2474.4,2474.3,4.0408]
[1725173498085,4.31958343,2474.4,2474.3,4.0408]
[1725173498289,3.2078,2474.5,2474.3,4.0408]
[1725173498487,3.2078,2474.5,2474.1,0.00407852]
[1725173498488,3.2078,2474.5,2474.4,4.4141]
[1725173499286,0.24853596,2474.6,2474.4,4.4141]
[1725173499485,0.24853596,2474.6,2474.5,4.4193]
[1725173499689,0.24853596,2474.6,2474.5,4.7939]
[1725173502088,0.00605596,2474.6,2474.5,4.7939]
[1725173505288,0.00605596,2474.6,2474.5,8.0017]
[1725173507088,0.24852596,2474.6,2474.5,8.0017]
[1725173507294,0.00605596,2474.6,2474.5,8.0017]
[1725173510099,0.00605596,2474.6,2474.5,4.7939]
[1725173511098,0.24852596,2474.6,2474.5,4.7939]
[1725173513193,0.24852596,2474.6,2474.5,4.4193]
[1725173513788,0.00605596,2474.6,2474.5,4.4193]
[1725173514700,0.24852596,2474.6,2474.5,4.4193]
[1725173516198,1.40852596,2474.6,2474.5,4.0408]
[1725173516498,1.40852596,2474.6,2474.2,0.7506]
[1725173516499,5.4795863,2474.6,2474.2,0.7506]
[1725173516693,0.2425,2474.4,2474.3,0.3721]
[1725173517098,0.2425,2474.4,2474.3,4.4129]
[1725173520398,0.2425,2474.4,2474.3,4.0408]
[1725173527298,8.41015156,2475.5,2474.4,4.0416]
[1725173527500,0.7268,2475.8,2475.3,4.6102]
[1725173527707,0.3574,2476.1,2475.4,1.5152]
[1725173528014,4.81183441,2476.0,2475.6,3.2078]
[1725173528509,0.24234,2475.9,2475.6,3.21385596]
[1725173528696,4.81790037,2476.0,2475.6,0.00605596]
[1725173528901,0.24235,2475.9,2475.6,0.00605596]
[1725173533207,7.78336037,2476.0,2475.6,0.00605596]
[1725173533415,0.24235,2475.9,2475.6,0.00605596]
[1725173533805,0.24235,2475.8,2475.6,0.00605596]
[1725173534005,0.3548,2475.7,2475.6,0.00605596]
[1725173534309,0.7328,2475.7,2475.6,0.00605596]
[1725173536213,18.84525873,2475.7,2475.6,0.00605596]
[1725173536508,15.63745873,2475.7,2475.6,0.00605596]
[1725173536810,9.63745873,2475.7,2475.6,0.00605596]
[1725173537211,15.63745873,2475.7,2475.6,0.00605596]
[1725173537604,9.63745873,2475.7,2475.6,0.00605596]
[1725173540813,12.84525873,2475.7,2475.6,0.00605596]
[1725173541419,9.63745873,2475.7,2475.6,0.00605596]
[1725173541616,5.35589873,2475.7,2475.6,0.00605596]
[1725173541911,9.39509873,2475.7,2475.6,0.00605596]
[1725173543920,9.63745873,2475.7,2475.6,0.00605596]
[1725173548021,0.24241,2475.3,2475.0,3.5606]
[1725173548230,0.3681,2475.2,2475.0,3.5606]
[1725173549223,0.24239,2475.5,2475.0,3.5606]
[1725173549521,4.23490458,2475.3,2475.0,3.5606]
[1725173549911,4.84479458,2475.5,2475.0,0.3528]
[1725173549912,0.60989,2475.5,2475.0,0.3528]
[1725173550116,0.24239,2475.4,2475.0,0.3528]
[1725173550323,4.82467706,2475.4,2475.0,0.3528]
[1725173550537,4.58228706,2475.4,2475.0,0.3528]
[1725173550710,0.60988,2475.5,2475.0,0.3528]
[1725173550914,0.24238,2475.5,2475.0,0.3528]
[1725173552323,0.24238,2475.5,2475.0,1.5128]
[1725173553523,0.24239,2475.4,2475.0,0.3528]
[1725173553726,4.24866565,2475.4,2475.0,0.3528]
[1725173554028,0.24239,2475.4,2475.0,0.3528]
[1725173554221,1.40239,2475.4,2475.0,0.3528]
[1725173554421,4.31151023,2475.3,2475.0,0.3528]
[1725173557530,4.69201023,2475.3,2475.0,0.3528]
[1725173558330,4.93441023,2475.3,2475.0,0.3528]
[1725173558533,5.32591023,2475.3,2475.0,0.3528]
[1725173560433,5.08351023,2475.3,2475.0,0.3528]
[1725173561436,5.32592023,2475.3,2475.0,0.3528]
[1725173561629,5.71712023,2475.3,2475.0,0.3528]
[1725173562835,0.24241,2475.2,2475.0,0.3528]
[1725173563128,5.47471023,2475.3,2475.0,0.3528]
[1725173563332,5.71712023,2475.3,2475.0,0.3528]
[1725173563530,5.47471023,2475.3,2475.0,0.3528]
[1725173564140,5.71711023,2475.3,2475.0,0.3528]
[1725173565432,5.47471023,2475.3,2475.0,0.3528]
[1725173565628,5.08321023,2475.3,2475.0,0.3528]
[1725173565935,4.85028646,2475.6,2475.0,1.5128]
[1725173565936,0.59889,2475.5,2475.0,1.5128]
[1725173566234,4.43538646,2475.6,2475.2,3.2078]
[1725173566430,4.27861862,2475.5,2475.3,0.3867]
[1725173567333,4.52100862,2475.5,2475.2,3.5961]
[1725173567534,4.27861862,2475.5,2475.2,3.5961]
[1725173567832,4.52100862,2475.5,2475.2,3.5961]
[1725173570229,4.27861862,2475.5,2475.2,3.5961]
[1725173571541,4.52099862,2475.5,2475.2,3.5961]
[1725173572837,4.52099862,2475.5,2475.2,0.3883]
[1725173580451,4.52099862,2475.5,2475.3,0.39046066]
[1725173580644,4.52099862,2475.5,2475.2,0.3883]
[1725173580954,4.52099862,2475.5,2475.3,0.39042179]
[1725173581249,4.52099862,2475.5,2475.2,0.3883]
[1725173581440,4.52099862,2475.5,2475.3,0.39039818]
[1725173581752,4.52099862,2475.5,2475.2,0.3883]
[1725173581950,4.52099862,2475.5,2475.3,0.39037692]
[1725173582152,4.52099862,2475.5,2475.2,0.3883]
[1725173582455,4.52099862,2475.5,2475.3,0.39036267]
[1725173582639,4.52099862,2475.5,2475.2,0.3883]
[1725173582844,4.52099862,2475.5,2475.3,0.39035993]
[1725173583044,4.52099862,2475.5,2475.2,0.3883]
[1725173583350,4.52099862,2475.5,2475.3,0.39036777]
[1725173583544,0.24239,2475.4,2475.1,1.05262708]
[1725173583736,0.6099,2475.3,2475.2,0.39037931]
[1725173583935,4.63928798,2475.3,2475.2,0.39037931]
[1725173584137,0.3675,2475.3,2475.2,0.39037931]
[1725173585440,0.3675,2475.3,2475.2,0.39041632]
[1725173587448,0.6099,2475.3,2475.2,0.39041632]
[1725173588745,0.24241,2475.2,2475.0,1.05262708]
[1725173589046,0.98051,2475.2,2475.1,0.39045032]
[1725173589245,0.7381,2475.2,2475.1,0.39048779]
[1725173592245,0.7381,2475.2,2474.9,5.0037056]
[1725173593953,0.98051,2475.2,2474.9,5.0037056]
[1725173594454,0.98051,2475.2,2475.0,1.05262708]
[1725173594851,0.98051,2475.2,2474.9,5.0037056]
[1725173595050,0.7381,2475.2,2474.9,5.0037056]
[1725173595347,0.61399,2475.5,2475.0,2.41302634]
[1725173595560,0.3677,2475.4,2475.0,2.41302634]
[1725173595853,4.7665621,2475.4,2475.0,2.41302634]
[1725173596047,5.0089521,2475.4,2475.0,2.41302634]
[1725173596452,4.7665621,2475.4,2475.0,2.41302634]
[1725173596648,0.61399,2475.5,2475.2,3.2078]
[1725173596853,0.61399,2475.5,2475.3,1.0946]
[1725173597450,0.3673,2475.4,2475.3,1.0946]
[1725173599054,0.3673,2475.4,2475.3,0.7297]
[1725173599246,0.7438,2475.4,2475.3,0.3643]
[1725173603659,0.98619,2475.4,2475.3,0.3643]
[1725173603858,0.98619,2475.4,2475.1,1.78752708]
[1725173605359,4.64683279,2475.3,2475.1,1.05262708]
[1725173606658,0.24241,2475.2,2475.1,1.05262708]
[1725173606965,0.24241,2475.2,2474.9,1.0567056]
[1725173607161,0.3573,2475.1,2474.9,1.0567056]
[1725173607663,0.3764,2475.0,2474.9,1.0567056]
[1725173610155,0.3764,2475.0,2474.9,5.0975056]
[1725173610866,0.3764,2475.0,2474.9,6.10792882]
[1725173611967,0.3764,2475.0,2474.9,2.06712882]
[1725173612169,0.3764,2475.0,2474.9,4.43545807]
[1725173616264,0.3764,2475.0,2474.9,0.39465807]
[1725173616465,0.3573,2475.1,2474.9,0.39465807]
[1725173616670,0.3573,2475.1,2475.0,3.59837955]
[1725173616975,0.59972,2475.1,2475.0,3.59837955]
[1725173617365,0.24242,2475.1,2475.0,3.59837955]
[1725173617565,0.24241,2475.2,2475.0,3.59837955]
[1725173617775,0.24241,2475.2,2475.0,3.2078]
[1725173617973,0.24242,2475.1,2475.0,3.2078]
[1725173618183,0.24242,2475.1,2475.0,3.59842641]
[1725173618481,0.24242,2475.1,2475.0,3.59842511]
[1725173618979,0.24242,2475.2,2475.0,3.59842511]
[1725173619173,0.24242,2475.1,2475.0,3.2078]
[1725173619368,0.24242,2475.1,2475.0,3.59843708]
[1725173619675,0.24242,2475.2,2475.0,3.59843708]
[1725173619869,0.24242,2475.2,2475.0,3.2078]
[1725173622379,0.24242,2475.2,2474.9,1.16407852]
[1725173622577,0.24242,2475.2,2475.0,0.39063965]
[1725173622872,0.24242,2475.2,2474.9,1.16407852]
[1725173623078,0.24242,2475.2,2475.0,0.39063809]
[1725173623279,0.24242,2475.2,2474.9,1.16407852]
[1725173623577,0.24242,2475.2,2475.0,0.39064066]
[1725173623879,0.24242,2475.2,2474.9,1.16407852]
[1725173624176,0.24242,2475.2,2475.0,0.39048136]
[1725173624376,0.24242,2475.2,2474.9,1.16407852]
[1725173624577,0.24242,2475.2,2475.0,0.39047262]
[1725173624777,0.24242,2475.2,2474.9,1.16407852]
[1725173624970,0.24242,2475.2,2475.0,0.39046796]
[1725173625279,0.24242,2475.2,2474.9,1.16407852]
[1725173625480,0.24242,2475.2,2475.0,0.39046065]
[1725173625689,0.24242,2475.2,2474.9,1.16407852]
[1725173625883,0.24242,2475.2,2475.0,0.39046109]
[1725173626075,0.24242,2475.2,2474.9,1.16407852]
[1725173626274,0.24242,2475.2,2475.0,0.3904784]
[1725173626473,0.24242,2475.2,2474.9,1.16407852]
[1725173626679,0.24242,2475.2,2475.0,0.39045336]
[1725173626881,0.24242,2475.2,2474.9,1.16407852]
[1725173627077,0.24242,2475.2,2475.0,0.39045539]
[1725173627283,0.24242,2475.2,2474.9,1.16407852]
[1725173627588,0.24242,2475.2,2475.0,0.39046543]
[1725173627882,0.24242,2475.2,2474.9,1.16407852]
[1725173628086,0.24242,2475.2,2475.0,0.39046712]
[1725173628384,0.24242,2475.2,2474.9,1.16407852]
[1725173628587,0.24242,2475.2,2475.0,0.39046386]
[1725173628787,0.24242,2475.2,2474.9,1.16407852]
[1725173628986,0.24242,2475.2,2475.0,0.39050923]
[1725173629284,0.24242,2475.2,2474.9,0.00407852]
[1725173629478,0.24242,2475.2,2475.0,0.39051736]
[1725173629680,0.24242,2475.2,2474.9,0.00407852]
[1725173629877,0.24242,2475.2,2475.0,0.39052324]
[1725173630073,0.24242,2475.2,2474.9,0.00407852]
[1725173630285,0.24242,2475.2,2475.0,0.39056126]
[1725173630487,0.24242,2475.2,2474.9,0.00407852]
[1725173630687,0.24242,2475.2,2475.0,0.3905783]
[1725173630985,0.24242,2475.2,2474.9,0.00407852]
[1725173631286,0.24242,2475.2,2475.0,0.3905636]
[1725173631483,0.24242,2475.2,2474.9,0.00407852]
[1725173631686,0.24242,2475.2,2475.0,0.39056954]
[1725173631983,0.24242,2475.2,2474.9,0.00407852]
[1725173632182,0.24242,2475.2,2475.0,0.3905676]
[1725173632485,0.24242,2475.2,2474.9,0.00407852]
[1725173632680,0.24242,2475.2,2475.0,0.39053892]
[1725173632983,0.24242,2475.2,2474.9,0.00407852]
[1725173633292,0.24242,2475.2,2475.0,0.3904539]
[1725173633591,0.24242,2475.2,2474.9,0.00407852]
[1725173633882,0.24242,2475.1,2475.0,0.39040528]
[1725173639877,0.24242,2475.1,2474.9,0.00407852]
[1725173640082,0.24242,2475.1,2475.0,0.39041607]
[1725173640276,0.24242,2475.1,2474.9,0.00407852]
[1725173640602,0.24242,2475.1,2475.0,0.390425]
[1725173641086,0.24242,2475.1,2474.9,0.00407852]
[1725173641278,0.24242,2475.1,2475.0,0.39040805]
[1725173641675,0.24242,2475.2,2475.0,0.39040805]
[1725173641880,3.80871,2475.3,2474.9,0.00407852]
[1725173642176,4.57076654,2475.2,2475.0,0.3903868]
[1725173642380,3.2078,2475.3,2475.1,0.3529]
[1725173650498,3.2078,2475.3,2475.2,0.39031729]
[1725173650691,3.2078,2475.3,2475.1,0.3529]
[1725173651395,3.2078,2475.3,2475.2,0.39034233]
[1725173651797,0.2424,2475.3,2475.2,0.39034233]
[1725173651990,0.2424,2475.3,2475.1,0.3529]
[1725173652401,0.24242,2475.1,2474.9,2.2167056]
[1725173652605,0.24242,2475.1,2475.0,1.00997081]
[1725173653098,0.24242,2475.1,2475.0,5.04997081]
[1725173653298,0.24242,2475.2,2475.0,5.04997081]
[1725173653488,0.24242,2475.2,2474.9,2.2167056]
[1725173653489,0.24242,2475.2,2475.1,0.39040469]
[1725173658811,0.24242,2475.2,2475.1,0.39032139]
[1725173659106,12.17080937,2475.2,2475.1,0.39032139]
[1725173659700,8.13080937,2475.2,2475.1,0.39032139]
[1725173660502,4.92300937,2475.2,2475.1,0.39032139]
[1725173662709,4.68058937,2475.2,2475.1,0.39032139]
[1725173663114,4.92299937,2475.2,2475.1,0.39032139]
[1725173663614,4.92299937,2475.2,2474.9,1.0567056]
[1725173663804,4.92299937,2475.2,2475.0,1.00987441]
[1725173664000,4.92299937,2475.2,2475.1,0.39036854]
[1725173664610,0.24241,2475.2,2475.1,0.39036854]
[1725173667103,0.24241,2475.2,2475.1,0.39039662]
[1725173668212,0.59681,2475.3,2475.1,0.39039662]
[1725173668401,0.59681,2475.3,2474.9,1.0567056]
[1725173668603,4.34939303,2475.2,2475.0,1.00996663]
[1725173668810,4.34939303,2475.2,2475.1,0.39040304]
[1725173669210,4.59180303,2475.2,2475.1,0.39040304]
[1725173674704,4.59180303,2475.2,2474.9,1.0567056]
[1725173674705,0.24243,2475.1,2474.9,1.0567056]
[1725173675020,0.24243,2475.1,2475.0,1.01013917]
[1725173675519,0.24241,2475.3,2475.0,5.05013917]
[1725173675818,0.2424,2475.3,2475.1,0.77006976]
[1725173676117,0.2424,2475.3,2475.2,0.39046976]
[1725173678217,0.2424,2475.3,2475.1,0.3796]
[1725173678420,0.2424,2475.3,2475.2,0.39045713]
[1725173678621,0.2424,2475.3,2475.1,0.3796]
[1725173678821,0.2424,2475.3,2475.2,0.39044972]
[1725173682224,0.2424,2475.4,2475.2,0.39044972]
[1725173682428,0.2424,2475.3,2474.9,1.0567056]
[1725173682617,0.2424,2475.3,2475.0,1.01050506]
[1725173682822,0.2424,2475.3,2475.1,0.39061118]
[1725173683125,0.2424,2475.3,2475.2,0.39061118]
[1725173683530,4.2824,2475.3,2475.2,0.39061118]
[1725173686825,4.667,2475.3,2475.2,0.39061118]
[1725173688330,0.24241,2475.2,2474.9,1.4316056]
[1725173688630,0.24241,2475.2,2475.0,1.01036214]
[1725173688926,0.24241,2475.2,2475.1,0.39055594]
[1725173691833,0.24243,2475.1,2474.9,1.4316056]
[1725173692033,0.24243,2475.1,2475.0,0.39056038]
[1725173695429,0.24243,2475.1,2475.0,0.39056895]
[1725173699129,0.24243,2475.1,2474.9,0.37897852]
[1725173699329,0.24243,2475.1,2475.0,0.39067389]
[1725173699524,0.24243,2475.1,2474.9,0.37897852]
[1725173699729,0.24243,2475.1,2475.0,0.39067526]
[1725173700329,4.62451456,2475.2,2475.0,1.01063113]
[1725173700531,4.62451456,2475.2,2475.1,0.39067526]
[1725173700731,4.38209456,2475.2,2475.1,0.39067526]
[1725173700930,3.45021,2475.3,2475.1,0.39067526]
[1725173701143,3.45021,2475.3,2475.2,0.39067526]
[1725173701334,0.24241,2475.2,2474.9,1.4316056]
[1725173701530,0.24241,2475.2,2475.0,1.01056359]